fUST/lending_fUST_20260514
["ID","MTS","AMOUNT","RATE_DAILY","PERIOD"]
[422204006,1778689846000,-2894.24488993,0.00012,2]
[422204004,1778689846000,-955.19,0.00010958,2]
[422204003,1778689846000,-207.799,0.00010857,2]
[422204001,1778689846000,-500.0,0.00010857,2]
[422204002,1778689846000,-292.201,0.00010857,2]
[422204008,1778689846000,-500.0,0.00010958,2]
[422204011,1778689863000,152.0,9.754e-05,2]
[422204012,1778689866000,152.0,0.00013758,30]
[422204058,1778691032000,-4361.94375197,7.917e-05,2]
[422204055,1778691032000,-438.05624803,7.838e-05,2]
[422204242,1778691041000,-300.0,8.929e-05,2]
[422204231,1778691041000,-3949.62891249,8.543e-05,2]
[422204237,1778691041000,-225.0,8.92e-05,2]
[422204240,1778691041000,-300.0,8.929e-05,2]
[422204244,1778691041000,-300.0,8.929e-05,2]
[422204255,1778691041000,-600.0,9.865e-05,2]
[422204246,1778691041000,-300.0,8.929e-05,2]
[422204243,1778691041000,-300.0,8.929e-05,2]
[422204254,1778691041000,-9365.7590256,9.123e-05,2]
[422204245,1778691041000,-300.0,8.929e-05,2]
[422204247,1778691041000,-300.0,8.929e-05,2]
[422204252,1778691041000,-300.0,8.929e-05,2]
[422204251,1778691041000,-300.0,8.929e-05,2]
[422204249,1778691041000,-300.0,8.929e-05,2]
[422204253,1778691041000,-300.0,8.929e-05,2]
[422204248,1778691041000,-300.0,8.929e-05,2]
[422204233,1778691041000,-4286.76073851,8.643e-05,2]
[422204222,1778691041000,-300.0,8.109e-05,2]
[422204238,1778691041000,-300.0,8.92e-05,2]
[422204216,1778691041000,-638.05624803,7.917e-05,2]
[422204217,1778691041000,-1200.0,7.996e-05,2]
[422204218,1778691041000,-5000.0,7.997e-05,2]
[422204220,1778691041000,-300.0,8.109e-05,2]
[422204221,1778691041000,-300.0,8.109e-05,2]
[422204219,1778691041000,-300.0,8.109e-05,2]
[422204250,1778691041000,-300.0,8.929e-05,2]
[422204223,1778691041000,-375.14826951,8.11e-05,2]
[422204224,1778691041000,-1464.93862282,8.143e-05,2]
[422204225,1778691041000,-300.0,8.241e-05,2]
[422204226,1778691041000,-6197.67181572,8.241e-05,2]
[422204228,1778691041000,-3570.68086578,8.343e-05,2]
[422204227,1778691041000,-3277.98770518,8.243e-05,2]
[422204229,1778691041000,-3613.8083088,8.443e-05,2]
[422204235,1778691041000,-715.5503244,8.844e-05,2]
[422204239,1778691041000,-300.0,8.929e-05,2]
[422204257,1778691041000,-166.71096543,0.000104,2]
[422204241,1778691041000,-300.0,8.929e-05,2]
[422204259,1778691041000,-208.14508815,0.000104,2]
[422204279,1778691041000,-374.34838596,0.00010557,2]
[422204282,1778691041000,-217.34678365,0.00010557,2]
[422204278,1778691041000,-625.8167726,0.00010557,2]
[422204274,1778691041000,-500.0,0.00010557,2]
[422204285,1778691041000,-500.0,0.00010557,2]
[422204286,1778691041000,-842.07074929,0.00010557,2]
[422204283,1778691041000,-500.0,0.00010557,2]
[422204284,1778691041000,-500.0,0.00010557,2]
[422204294,1778691041000,-398.01137478,0.00010557,2]
[422204289,1778691041000,-842.07074929,0.00010557,2]
[422204287,1778691041000,-500.0,0.00010557,2]
[422204291,1778691041000,-849.72593791,0.00010557,2]
[422204292,1778691041000,-849.72593791,0.00010557,2]
[422204293,1778691041000,-849.72593791,0.00010557,2]
[422204290,1778691041000,-849.72593791,0.00010557,2]
[422204276,1778691041000,-500.0,0.00010557,2]
[422204275,1778691041000,-500.0,0.00010557,2]
[422204281,1778691041000,-282.65321635,0.00010557,2]
[422204270,1778691041000,-842.07074929,0.00010557,2]
[422204258,1778691041000,-247.71390246,0.000104,2]
[422204268,1778691041000,-842.07074929,0.00010557,2]
[422204269,1778691041000,-842.07074929,0.00010557,2]
[422204256,1778691041000,-442.67495802,0.0001011,2]
[422204277,1778691041000,-500.0,0.00010557,2]
[422204265,1778691041000,-500.0,0.00010557,2]
[422204262,1778691041000,-842.07074929,0.00010557,2]
[422204266,1778691041000,-842.07074929,0.00010557,2]
[422204261,1778691041000,-155.02961378,0.00010524,2]
[422204263,1778691041000,-257.69695235,0.00010557,2]
[422204260,1778691041000,-220.647776,0.000104,2]
[422204288,1778691041000,-842.07074929,0.00010557,2]
[422204280,1778691041000,-500.0,0.00010557,2]
[422204272,1778691041000,-842.07074929,0.00010557,2]
[422204267,1778691041000,-842.07074929,0.00010557,2]
[422204273,1778691041000,-500.0,0.00010557,2]
[422204271,1778691041000,-842.07074929,0.00010557,2]
[422204264,1778691041000,-842.07074929,0.00010557,2]
[422204307,1778691043000,-849.72593791,0.00010557,2]
[422204309,1778691043000,-956.75730721,0.00010557,2]
[422204305,1778691043000,-451.71456313,0.00010557,2]
[422204306,1778691043000,-849.72593791,0.00010557,2]
[422204308,1778691043000,-849.72593791,0.00010557,2]
[422204318,1778691047000,-38695.72646537,0.00010558,2]
[422204316,1778691047000,-562.94485101,0.00010557,2]
[422204317,1778691047000,-661331.65157804,0.00010558,2]
[422204320,1778691323000,800.92,0.00014,30]
[422204324,1778691673000,-2165.88741796,9.192e-05,2]
[422204325,1778691691000,-5000.0,9.285e-05,2]
[422204326,1778691707000,-362.50470045,9.427e-05,2]
[422204327,1778691724000,-14216.78481228,9.665e-05,2]
[422204328,1778691742000,-362.50470045,9.665e-05,2]
[422204329,1778691758000,-14216.78481228,9.665e-05,2]
[422204330,1778691777000,-362.50470045,9.665e-05,2]
[422204362,1778692232000,-1349.64553418,7.523e-05,2]
[422204375,1778692232000,-1421.2607696,7.6e-05,2]
[422204364,1778692232000,-3650.35446582,7.523e-05,2]
[422204370,1778692232000,-1150.32776788,7.6e-05,2]
[422204377,1778692232000,-679.45363298,7.6e-05,2]
[422204373,1778692232000,-1132.51579489,7.6e-05,2]
[422204366,1778692232000,-355.25460645,7.561e-05,2]
[422204368,1778692232000,-300.0,7.599e-05,2]
[422204505,1778692238000,-638.54076998,9.564e-05,2]
[422204516,1778692238000,-726.73462037,9.564e-05,2]
[422204512,1778692238000,-726.73462037,9.564e-05,2]
[422204502,1778692238000,-2076.14821338,9.425e-05,2]
[422204515,1778692238000,-726.73462037,9.564e-05,2]
[422204519,1778692238000,-726.73462037,9.564e-05,2]
[422204525,1778692238000,-726.73462037,9.564e-05,2]
[422204504,1778692238000,-419.20043561,9.561e-05,2]
[422204509,1778692238000,-726.73462037,9.564e-05,2]
[422204507,1778692238000,-726.73462037,9.564e-05,2]
[422204518,1778692238000,-726.73462037,9.564e-05,2]
[422204510,1778692238000,-726.73462037,9.564e-05,2]
[422204513,1778692238000,-726.73462037,9.564e-05,2]
[422204499,1778692238000,-300.0,7.751e-05,2]
[422204482,1778692238000,-300.0,7.751e-05,2]
[422204498,1778692238000,-300.0,7.751e-05,2]
[422204489,1778692238000,-300.0,7.751e-05,2]
[422204487,1778692238000,-300.0,7.751e-05,2]
[422204486,1778692238000,-300.0,7.751e-05,2]
[422204495,1778692238000,-300.0,7.751e-05,2]
[422204484,1778692238000,-300.0,7.751e-05,2]
[422204483,1778692238000,-300.0,7.751e-05,2]
[422204493,1778692238000,-300.0,7.751e-05,2]
[422204496,1778692238000,-300.0,7.751e-05,2]
[422204490,1778692238000,-300.0,7.751e-05,2]
[422204492,1778692238000,-300.0,7.751e-05,2]
[422204479,1778692238000,-20813.00202514,7.6e-05,2]
[422204480,1778692238000,-300.0,7.751e-05,2]
[422204477,1778692238000,-5000.0,7.524e-05,2]
[422204501,1778692238000,-300.0,7.751e-05,2]
[422204532,1778692238000,-726.73462037,9.564e-05,2]
[422204528,1778692238000,-726.73462037,9.564e-05,2]
[422204523,1778692238000,-726.73462037,9.564e-05,2]
[422204522,1778692238000,-726.73462037,9.564e-05,2]
[422204575,1778692238000,-213693.00216599,0.000103,2]
[422204566,1778692238000,-118279.2179326,9.565e-05,2]
[422204572,1778692238000,-10900.11,9.852e-05,2]
[422204568,1778692238000,-1106079.55914768,9.565e-05,2]
[422204574,1778692238000,-600.0,9.857e-05,2]
[422204564,1778692238000,-500.0,9.564e-05,2]
[422204562,1778692238000,-500.0,9.564e-05,2]
[422204560,1778692238000,-500.0,9.564e-05,2]
[422204558,1778692238000,-313.93583993,9.564e-05,2]
[422204548,1778692238000,-500.0,9.564e-05,2]
[422204544,1778692238000,-373.0210819,9.564e-05,2]
[422204552,1778692238000,-480.26392943,9.564e-05,2]
[422204554,1778692238000,-500.0,9.564e-05,2]
[422204570,1778692238000,-86002.61888158,9.665e-05,2]
[422204546,1778692238000,-500.0,9.564e-05,2]
[422204556,1778692238000,-500.0,9.564e-05,2]
[422204531,1778692238000,-726.73462037,9.564e-05,2]
[422204534,1778692238000,-500.0,9.564e-05,2]
[422204535,1778692238000,-500.0,9.564e-05,2]
[422204526,1778692238000,-726.73462037,9.564e-05,2]
[422204529,1778692238000,-726.73462037,9.564e-05,2]
[422204521,1778692238000,-726.73462037,9.564e-05,2]
[422204549,1778692238000,-500.0,9.564e-05,2]
[422204542,1778692238000,-318.79840182,9.564e-05,2]
[422204540,1778692238000,-500.0,9.564e-05,2]
[422204543,1778692238000,-500.0,9.564e-05,2]
[422204539,1778692238000,-500.0,9.564e-05,2]
[422204551,1778692238000,-500.0,9.564e-05,2]
[422204537,1778692238000,-310.79520762,9.564e-05,2]
[422204580,1778692239000,-4101.80569352,0.000103,2]
[422204577,1778692239000,-484.042256,0.000103,2]
[422204801,1778692240000,-68381.34288602,0.000103,2]
[422204808,1778692240000,-2987.63384,0.000103,2]
[422204952,1778692243000,-156.079757,0.00010958,2]
[422204948,1778692243000,-500.0,0.00010958,2]
[422204956,1778692243000,-156.079757,0.00010958,2]
[422204947,1778692243000,-500.0,0.00010958,2]
[422204945,1778692243000,-160.0,0.0001088,2]
[422204946,1778692243000,-1967.7828,0.00010958,2]
[422204944,1778692243000,-160.0,0.0001088,2]
[422204941,1778692243000,-720.0,0.00010843,2]
[422204938,1778692243000,-1495.31315048,0.000108,2]
[422204932,1778692243000,-214281.76877747,0.000103,2]
[422204942,1778692243000,-160.0,0.0001088,2]
[422204939,1778692243000,-185.0,0.00010836,2]
[422204937,1778692243000,-435.70637705,0.00010444,21]
[422204935,1778692243000,-727.8446096,0.00010423,2]
[422204934,1778692243000,-325.8780424,0.00010384,2]
[422204943,1778692243000,-161.63868993,0.0001088,2]
[422204933,1778692243000,-1059.0518239,0.00010384,2]
[422204951,1778692243000,-156.079757,0.00010958,2]
[422204940,1778692243000,-443.0,0.00010836,2]
[422204955,1778692243000,-156.079757,0.00010958,2]
[422204936,1778692243000,-22762.5054799,0.00010423,2]
[422204949,1778692243000,-500.0,0.00010958,2]
[422204950,1778692243000,-522.61,0.00010958,2]
[422204975,1778692243000,-156.079757,0.00010958,2]
[422204973,1778692243000,-156.079757,0.00010958,2]
[422204974,1778692243000,-156.079757,0.00010958,2]
[422204967,1778692243000,-156.079757,0.00010958,2]
[422204966,1778692243000,-156.079757,0.00010958,2]
[422204971,1778692243000,-156.079757,0.00010958,2]
[422204963,1778692243000,-511.39,0.00010958,2]
[422204962,1778692243000,-156.079757,0.00010958,2]
[422204961,1778692243000,-156.079757,0.00010958,2]
[422204972,1778692243000,-156.079757,0.00010958,2]
[422204960,1778692243000,-156.079757,0.00010958,2]
[422204964,1778692243000,-156.079757,0.00010958,2]
[422204969,1778692243000,-156.079757,0.00010958,2]
[422204958,1778692243000,-156.079757,0.00010958,2]
[422204959,1778692243000,-156.079757,0.00010958,2]
[422204953,1778692243000,-156.079757,0.00010958,2]
[422204954,1778692243000,-156.079757,0.00010958,2]
[422204965,1778692243000,-156.079757,0.00010958,2]
[422204957,1778692243000,-156.079757,0.00010958,2]
[422205018,1778692244000,-156.079757,0.00010958,2]
[422205020,1778692244000,-156.079757,0.00010958,2]
[422205016,1778692244000,-156.079757,0.00010958,2]
[422205014,1778692244000,-156.079757,0.00010958,2]
[422205005,1778692244000,-156.079757,0.00010958,2]
[422205013,1778692244000,-156.079757,0.00010958,2]
[422205012,1778692244000,-156.079757,0.00010958,2]
[422205006,1778692244000,-156.079757,0.00010958,2]
[422205004,1778692244000,-156.079757,0.00010958,2]
[422205015,1778692244000,-156.079757,0.00010958,2]
[422205011,1778692244000,-156.079757,0.00010958,2]
[422205019,1778692244000,-156.079757,0.00010958,2]
[422205030,1778692244000,-156.079757,0.00010958,2]
[422205021,1778692244000,-156.079757,0.00010958,2]
[422205022,1778692244000,-156.079757,0.00010958,2]
[422205023,1778692244000,-156.079757,0.00010958,2]
[422205026,1778692244000,-156.079757,0.00010958,2]
[422205025,1778692244000,-156.079757,0.00010958,2]
[422205027,1778692244000,-156.079757,0.00010958,2]
[422205033,1778692244000,-156.079757,0.00010958,2]
[422205028,1778692244000,-156.079757,0.00010958,2]
[422205008,1778692244000,-156.079757,0.00010958,2]
[422205031,1778692244000,-156.079757,0.00010958,2]
[422205029,1778692244000,-156.079757,0.00010958,2]
[422205032,1778692244000,-156.079757,0.00010958,2]
[422205034,1778692244000,-156.079757,0.00010958,2]
[422205017,1778692244000,-156.079757,0.00010958,2]
[422205007,1778692244000,-156.079757,0.00010958,2]
[422204996,1778692244000,-156.079757,0.00010958,2]
[422205024,1778692244000,-156.079757,0.00010958,2]
[422204984,1778692244000,-156.079757,0.00010958,2]
[422204985,1778692244000,-156.079757,0.00010958,2]
[422204976,1778692244000,-156.079757,0.00010958,2]
[422204983,1778692244000,-156.079757,0.00010958,2]
[422204977,1778692244000,-156.079757,0.00010958,2]
[422204979,1778692244000,-156.079757,0.00010958,2]
[422204978,1778692244000,-156.079757,0.00010958,2]
[422204981,1778692244000,-156.079757,0.00010958,2]
[422204982,1778692244000,-156.079757,0.00010958,2]
[422204980,1778692244000,-156.079757,0.00010958,2]
[422204987,1778692244000,-156.079757,0.00010958,2]
[422204997,1778692244000,-156.079757,0.00010958,2]
[422204991,1778692244000,-156.079757,0.00010958,2]
[422204989,1778692244000,-156.079757,0.00010958,2]
[422204990,1778692244000,-156.079757,0.00010958,2]
[422204988,1778692244000,-156.079757,0.00010958,2]
[422204995,1778692244000,-156.079757,0.00010958,2]
[422204994,1778692244000,-156.079757,0.00010958,2]
[422204986,1778692244000,-156.079757,0.00010958,2]
[422204993,1778692244000,-156.079757,0.00010958,2]
[422204992,1778692244000,-156.079757,0.00010958,2]
[422204999,1778692244000,-156.079757,0.00010958,2]
[422205010,1778692244000,-156.079757,0.00010958,2]
[422205009,1778692244000,-156.079757,0.00010958,2]
[422204998,1778692244000,-156.079757,0.00010958,2]
[422205000,1778692244000,-156.079757,0.00010958,2]
[422205001,1778692244000,-156.079757,0.00010958,2]
[422205003,1778692244000,-156.079757,0.00010958,2]
[422205035,1778692244000,-175.589732,0.00010958,2]
[422205002,1778692244000,-156.079757,0.00010958,2]
[422205036,1778692244000,-175.589732,0.00010958,2]
[422205067,1778692244000,-1113.99,0.00010958,2]
[422205080,1778692244000,-500.0,0.00010958,2]
[422205078,1778692244000,-500.0,0.00010958,2]
[422205069,1778692244000,-500.0,0.00010958,2]
[422205070,1778692244000,-500.0,0.00010958,2]
[422205071,1778692244000,-561.87,0.00010958,2]
[422205072,1778692244000,-500.0,0.00010958,2]
[422205076,1778692244000,-500.0,0.00010958,2]
[422205075,1778692244000,-500.0,0.00010958,2]
[422205073,1778692244000,-546.52,0.00010958,2]
[422205077,1778692244000,-500.0,0.00010958,2]
[422205074,1778692244000,-500.58077447,0.00010958,2]
[422205082,1778692244000,-500.0,0.00010958,2]
[422205091,1778692244000,-500.0,0.00010958,2]
[422205081,1778692244000,-607.63,0.00010958,2]
[422205087,1778692244000,-947.03,0.00010958,2]
[422205084,1778692244000,-500.0,0.00010958,2]
[422205083,1778692244000,-500.0,0.00010958,2]
[422205094,1778692244000,-2526.42,0.00010958,2]
[422205085,1778692244000,-500.0,0.00010958,2]
[422205088,1778692244000,-500.0,0.00010958,2]
[422205092,1778692244000,-500.0,0.00010958,2]
[422205090,1778692244000,-1097.25,0.00010958,2]
[422205089,1778692244000,-1762.26,0.00010958,2]
[422205093,1778692244000,-500.98198649,0.00010958,2]
[422205095,1778692244000,-500.0,0.00010958,2]
[422205037,1778692244000,-175.589732,0.00010958,2]
[422205079,1778692244000,-500.0,0.00010958,2]
[422205068,1778692244000,-500.0,0.00010958,2]
[422205086,1778692244000,-500.0,0.00010958,2]
[422205062,1778692244000,-611.0,0.00010958,2]
[422205064,1778692244000,-762.81,0.00010958,2]
[422205041,1778692244000,-175.589732,0.00010958,2]
[422205042,1778692244000,-165.321326,0.00010958,2]
[422205038,1778692244000,-175.589732,0.00010958,2]
[422205039,1778692244000,-175.589732,0.00010958,2]
[422205040,1778692244000,-175.589732,0.00010958,2]
[422205043,1778692244000,-165.321326,0.00010958,2]
[422205046,1778692244000,-175.589732,0.00010958,2]
[422205047,1778692244000,-165.321326,0.00010958,2]
[422205048,1778692244000,-175.589732,0.00010958,2]
[422205054,1778692244000,-500.0,0.00010958,2]
[422205053,1778692244000,-509.25,0.00010958,2]
[422205051,1778692244000,-165.321326,0.00010958,2]
[422205049,1778692244000,-165.321326,0.00010958,2]
[422205045,1778692244000,-165.321326,0.00010958,2]
[422205052,1778692244000,-500.0,0.00010958,2]
[422205061,1778692244000,-500.0,0.00010958,2]
[422205057,1778692244000,-178.481659,0.00010958,2]
[422205058,1778692244000,-500.0,0.00010958,2]
[422205059,1778692244000,-1088.15,0.00010958,2]
[422205063,1778692244000,-500.0,0.00010958,2]
[422205056,1778692244000,-500.0,0.00010958,2]
[422205060,1778692244000,-500.0,0.00010958,2]
[422205066,1778692244000,-500.0,0.00010958,2]
[422205055,1778692244000,-167.1193,0.00010958,2]
[422205050,1778692244000,-175.589732,0.00010958,2]
[422205044,1778692244000,-175.589732,0.00010958,2]
[422205065,1778692244000,-187.94809331,0.00010958,2]
[422205134,1778692245000,-871.49,0.00010958,2]
[422205142,1778692245000,-249.95,0.00010958,2]
[422205143,1778692245000,-3333.5,0.00010958,2]
[422205139,1778692245000,-18210.46,0.00010958,2]
[422205140,1778692245000,-1014.89,0.00010958,2]
[422205144,1778692245000,-500.0,0.00010958,2]
[422205136,1778692245000,-530.38,0.00010958,2]
[422205133,1778692245000,-1170.69,0.00010958,2]
[422205138,1778692245000,-533.26,0.00010958,2]
[422205126,1778692245000,-343.46384104,0.00010958,2]
[422205129,1778692245000,-500.0,0.00010958,2]
[422205127,1778692245000,-2191.62,0.00010958,2]
[422205145,1778692245000,-500.0,0.00010958,2]
[422205141,1778692245000,-1553.5,0.00010958,2]
[422205155,1778692245000,-1573.59,0.00010958,2]
[422205137,1778692245000,-1854.76,0.00010958,2]
[422205147,1778692245000,-1283.56,0.00010958,2]
[422205157,1778692245000,-2534.18,0.00010958,2]
[422205158,1778692245000,-1503.89,0.00010958,2]
[422205152,1778692245000,-1222.55,0.00010958,2]
[422205159,1778692245000,-2477.12,0.00010958,2]
[422205151,1778692245000,-510.29,0.00010958,2]
[422205146,1778692245000,-500.0,0.00010958,2]
[422205149,1778692245000,-500.0,0.00010958,2]
[422205148,1778692245000,-511.71,0.00010958,2]
[422205150,1778692245000,-1314.69,0.00010958,2]
[422205156,1778692245000,-3151.6,0.00010958,2]
[422205154,1778692245000,-500.0,0.00010958,2]
[422205125,1778692245000,-1059.63,0.00010958,2]
[422205135,1778692245000,-500.0,0.00010958,2]
[422205128,1778692245000,-827.47,0.00010958,2]
[422205106,1778692245000,-545.03,0.00010958,2]
[422205122,1778692245000,-952.2,0.00010958,2]
[422205096,1778692245000,-506.91,0.00010958,2]
[422205153,1778692245000,-1604.7,0.00010958,2]
[422205097,1778692245000,-500.71697426,0.00010958,2]
[422205098,1778692245000,-500.0,0.00010958,2]
[422205100,1778692245000,-502.18998232,0.00010958,2]
[422205099,1778692245000,-500.0,0.00010958,2]
[422205104,1778692245000,-831.6,0.00010958,2]
[422205101,1778692245000,-671.23,0.00010958,2]
[422205102,1778692245000,-473.91927311,0.00010958,2]
[422205103,1778692245000,-500.0,0.00010958,2]
[422205105,1778692245000,-500.0,0.00010958,2]
[422205107,1778692245000,-500.0,0.00010958,2]
[422205110,1778692245000,-500.0,0.00010958,2]
[422205115,1778692245000,-501.37,0.00010958,2]
[422205119,1778692245000,-954.71,0.00010958,2]
[422205114,1778692245000,-500.67989293,0.00010958,2]
[422205108,1778692245000,-875.59,0.00010958,2]
[422205109,1778692245000,-501.46437463,0.00010958,2]
[422205117,1778692245000,-501.09086604,0.00010958,2]
[422205111,1778692245000,-500.97237873,0.00010958,2]
[422205116,1778692245000,-500.0,0.00010958,2]
[422205118,1778692245000,-500.0,0.00010958,2]
[422205112,1778692245000,-500.51900698,0.00010958,2]
[422205120,1778692245000,-1929.47,0.00010958,2]
[422205121,1778692245000,-967.88,0.00010958,2]
[422205124,1778692245000,-500.0,0.00010958,2]
[422205123,1778692245000,-3035.03,0.00010958,2]
[422205131,1778692245000,-689.09,0.00010958,2]
[422205130,1778692245000,-2401.01,0.00010958,2]
[422205132,1778692245000,-500.0,0.00010958,2]
[422205161,1778692245000,-858.55,0.00010958,2]
[422205113,1778692245000,-1149.19,0.00010958,2]
[422205172,1778692245000,-325.8415176,0.00011068,2]
[422205193,1778692245000,-500.0,0.00011232,2]
[422205195,1778692245000,-561.87,0.00011232,2]
[422205196,1778692245000,-546.52,0.00011232,2]
[422205200,1778692245000,-1762.26,0.00011232,2]
[422205201,1778692245000,-1097.25,0.00011232,2]
[422205207,1778692245000,-545.03,0.00011232,2]
[422205203,1778692245000,-506.91,0.00011232,2]
[422205206,1778692245000,-831.6,0.00011232,2]
[422205204,1778692245000,-500.0,0.00011232,2]
[422205219,1778692245000,-1059.63,0.00011232,2]
[422205202,1778692245000,-2526.42,0.00011232,2]
[422205205,1778692245000,-671.23,0.00011232,2]
[422205211,1778692245000,-500.0,0.00011232,2]
[422205212,1778692245000,-500.0,0.00011232,2]
[422205208,1778692245000,-875.59,0.00011232,2]
[422205209,1778692245000,-1149.19,0.00011232,2]
[422205210,1778692245000,-501.37,0.00011232,2]
[422205213,1778692245000,-954.71,0.00011232,2]
[422205222,1778692245000,-500.0,0.00011232,2]
[422205214,1778692245000,-1929.47,0.00011232,2]
[422205224,1778692245000,-689.09,0.00011232,2]
[422205223,1778692245000,-2401.01,0.00011232,2]
[422205225,1778692245000,-269.78019496,0.00011232,2]
[422205218,1778692245000,-500.0,0.00011232,2]
[422205221,1778692245000,-827.47,0.00011232,2]
[422205220,1778692245000,-2191.62,0.00011232,2]
[422205215,1778692245000,-967.88,0.00011232,2]
[422205217,1778692245000,-3035.03,0.00011232,2]
[422205171,1778692245000,-644.79446246,0.00011006,2]
[422205192,1778692245000,-1113.99,0.00011232,2]
[422205194,1778692245000,-500.0,0.00011232,2]
[422205216,1778692245000,-952.2,0.00011232,2]
[422205186,1778692245000,-500.0,0.00011232,2]
[422205162,1778692245000,-500.0,0.00010958,2]
[422205191,1778692245000,-150.30811288,0.00011232,2]
[422205160,1778692245000,-500.0,0.00010958,2]
[422205168,1778692245000,-704.65,0.00010958,2]
[422205165,1778692245000,-1203.42,0.00010958,2]
[422205163,1778692245000,-500.0,0.00010958,2]
[422205166,1778692245000,-500.0,0.00010958,2]
[422205164,1778692245000,-500.0,0.00010958,2]
[422205170,1778692245000,-162.380719,0.00011006,2]
[422205169,1778692245000,-1495.31315048,0.00011,2]
[422205173,1778692245000,-1495.31315048,0.000111,2]
[422205177,1778692245000,-500.0,0.00011232,2]
[422205176,1778692245000,-1778.8669,0.00011232,2]
[422205175,1778692245000,-524.893,0.00011211,2]
[422205185,1778692245000,-1088.15,0.00011232,2]
[422205167,1778692245000,-500.0,0.00010958,2]
[422205174,1778692245000,-1495.31315048,0.000112,2]
[422205179,1778692245000,-511.39,0.00011232,2]
[422205199,1778692245000,-947.03,0.00011232,2]
[422205190,1778692245000,-500.0,0.00011232,2]
[422205189,1778692245000,-762.81,0.00011232,2]
[422205198,1778692245000,-607.63,0.00011232,2]
[422205197,1778692245000,-500.0,0.00011232,2]
[422205188,1778692245000,-500.0,0.00011232,2]
[422205182,1778692245000,-500.0,0.00011232,2]
[422205180,1778692245000,-500.0,0.00011232,2]
[422205183,1778692245000,-500.0,0.00011232,2]
[422205184,1778692245000,-500.0,0.00011232,2]
[422205178,1778692245000,-522.61,0.00011232,2]
[422205187,1778692245000,-611.0,0.00011232,2]
[422205181,1778692245000,-509.25,0.00011232,2]
[422205269,1778692246000,-500.0,0.00011506,2]
[422205270,1778692246000,-509.25,0.00011506,2]
[422205268,1778692246000,-511.39,0.00011506,2]
[422205267,1778692246000,-522.61,0.00011506,2]
[422205262,1778692246000,-1495.31315048,0.000113,2]
[422205263,1778692246000,-154.0,0.00011354,21]
[422205259,1778692246000,-704.65,0.00011232,2]
[422205258,1778692246000,-500.0,0.00011232,2]
[422205260,1778692246000,-905.21355792,0.0001126,21]
[422205264,1778692246000,-1495.31315048,0.000114,2]
[422205261,1778692246000,-569.25002252,0.0001126,21]
[422205282,1778692246000,-293.66042968,0.00011506,2]
[422205266,1778692246000,-500.0,0.00011506,2]
[422205271,1778692246000,-500.0,0.00011506,2]
[422205272,1778692246000,-500.0,0.00011506,2]
[422205273,1778692246000,-500.0,0.00011506,2]
[422205274,1778692246000,-1088.15,0.00011506,2]
[422205283,1778692246000,-561.87,0.00011506,2]
[422205285,1778692246000,-500.0,0.00011506,2]
[422205284,1778692246000,-546.52,0.00011506,2]
[422205275,1778692246000,-500.0,0.00011506,2]
[422205286,1778692246000,-607.63,0.00011506,2]
[422205277,1778692246000,-500.0,0.00011506,2]
[422205257,1778692246000,-500.0,0.00011232,2]
[422205276,1778692246000,-611.0,0.00011506,2]
[422205265,1778692246000,-1495.31315048,0.000115,2]
[422205256,1778692246000,-1203.42,0.00011232,2]
[422205239,1778692246000,-1283.56,0.00011232,2]
[422205254,1778692246000,-500.0,0.00011232,2]
[422205280,1778692246000,-1113.99,0.00011506,2]
[422205226,1778692246000,-1170.69,0.00011232,2]
[422205228,1778692246000,-500.0,0.00011232,2]